bitfinex-derivatives/quotes_BNBF0:USTF0_20250617
["timestamp","ask_amount","ask_price","bid_price","bid_amount"]
[1750127886398,1.00352631,653.55,653.04,0.30625995]
[1750127886601,1.00352631,653.54,653.04,0.30625995]
[1750127886804,1.00352631,653.53,653.04,0.30625995]
[1750127887002,1.00352631,653.52,653.04,0.30625995]
[1750127887202,1.00352631,653.51,653.04,0.30625995]
[1750127887501,1.00352631,653.5,653.04,0.30625995]
[1750127887703,1.00352631,653.49,653.05,1.386]
[1750127888002,1.00352631,653.48,653.05,1.386]
[1750127888203,1.00352631,653.47,653.05,1.386]
[1750127888404,1.00352631,653.46,653.05,1.386]
[1750127888704,1.00352631,653.45,653.05,1.386]
[1750127888904,1.00352631,653.44,653.05,1.386]
[1750127889104,1.00352631,653.43,653.05,1.386]
[1750127889303,1.00352631,653.42,653.05,1.386]
[1750127889603,1.00352631,653.41,653.05,1.386]
[1750127889804,1.00352631,653.4,653.05,1.386]
[1750127890104,1.00352631,653.39,653.05,1.386]
[1750127890404,1.13369783,653.61,653.05,1.386]
[1750127890405,1.00352631,653.38,653.05,1.386]
[1750127890699,2.28601106,653.6,653.05,1.386]
[1750127890904,1.98702127,653.59,653.05,1.386]
[1750127891103,1.98702127,653.58,653.05,1.386]
[1750127891301,1.98702127,653.57,653.05,1.386]
[1750127891504,1.98702127,653.56,653.05,1.386]
[1750127891706,1.00236652,653.55,653.05,1.386]
[1750127892006,1.00236652,653.54,653.05,1.386]
[1750127892201,1.00236652,653.53,653.05,1.386]
[1750127892401,1.00236652,653.52,653.05,1.386]
[1750127892705,1.00236652,653.51,653.05,1.386]
[1750127892903,1.13369783,653.63,653.05,1.386]
[1750127892904,1.00236652,653.5,653.05,1.386]
[1750127893102,1.00236652,653.49,653.05,1.386]
[1750127893405,1.00236652,653.48,653.05,1.386]
[1750127893603,1.00236652,653.47,653.05,1.386]
[1750127893806,1.00236652,653.46,653.05,1.386]
[1750127894004,1.00236652,653.45,653.05,1.386]
[1750127894305,1.00236652,653.44,653.05,1.386]
[1750127894504,1.00236652,653.43,653.05,1.386]
[1750127894809,1.00236652,653.42,653.05,1.386]
[1750127895007,1.00236652,653.41,653.05,1.386]
[1750127895209,1.00236652,653.4,653.05,1.386]
[1750127895506,1.00236652,653.39,653.05,1.386]
[1750127895707,1.00236652,653.38,653.05,1.386]
[1750127895908,2.28626476,653.61,653.05,1.386]
[1750127896111,1.00247358,653.6,653.05,1.386]
[1750127896308,1.00247358,653.59,653.05,1.386]
[1750127896507,1.00247358,653.58,653.05,1.386]
[1750127896707,1.00247358,653.57,653.05,1.386]
[1750127896914,1.00247358,653.56,653.05,1.386]
[1750127897107,1.00247358,653.55,653.05,1.386]
[1750127897308,1.00247358,653.54,653.05,1.386]
[1750127897509,1.00247358,653.53,653.05,1.386]
[1750127897811,0.98470921,653.6,653.05,1.386]
[1750127897812,1.00247358,653.52,653.05,1.386]
[1750127898111,1.00247358,653.51,653.05,1.386]
[1750127898411,1.00247358,653.5,653.05,1.386]
[1750127898610,1.00247358,653.49,653.05,1.386]
[1750127898810,1.00247358,653.48,653.05,1.386]
[1750127899010,1.00247358,653.47,653.05,1.386]
[1750127899309,1.00247358,653.46,653.05,1.386]
[1750127899513,1.00247358,653.45,653.05,1.386]
[1750127899713,1.00247358,653.44,653.05,1.386]
[1750127899907,1.00247358,653.43,653.05,1.386]
[1750127900110,1.00247358,653.42,653.05,1.386]
[1750127900309,1.00247358,653.41,653.05,1.386]
[1750127900512,1.00247358,653.4,653.05,1.386]
[1750127900709,1.00247358,653.39,653.05,1.386]
[1750127900913,1.00247358,653.38,653.05,1.386]
[1750127901110,0.98475447,653.57,653.05,1.386]
[1750127901315,1.00257328,653.56,653.05,1.386]
[1750127901516,0.98475447,653.6,653.05,1.386]
[1750127901715,1.002619,653.59,653.05,1.386]
[1750127901918,1.002619,653.58,653.05,1.386]
[1750127902114,1.002619,653.57,653.05,1.386]
[1750127902318,1.002619,653.56,653.05,1.386]
[1750127902615,1.002619,653.55,653.05,1.386]
[1750127902820,1.002619,653.54,653.06,1.501]
[1750127903113,1.002619,653.53,653.06,1.501]
[1750127903314,1.002619,653.52,653.06,1.501]
[1750127903515,1.002619,653.51,653.06,1.501]
[1750127903819,1.13929368,653.58,653.06,1.501]
[1750127903820,1.002619,653.5,653.06,1.501]
[1750127904118,1.002619,653.49,653.06,1.501]
[1750127904314,1.002619,653.48,653.06,1.501]
[1750127904514,1.002619,653.47,653.06,1.501]
[1750127904720,1.002619,653.46,653.06,1.501]
[1750127904915,1.002619,653.45,653.06,1.501]
[1750127905116,1.002619,653.44,653.06,1.501]
[1750127905316,1.002619,653.43,653.06,1.501]
[1750127905520,1.002619,653.42,653.06,1.501]
[1750127905720,1.002619,653.41,653.06,1.501]
[1750127906015,1.002619,653.4,653.06,1.501]
[1750127906221,0.98501301,653.57,653.06,1.501]
[1750127906421,1.000538,653.56,653.06,1.501]
[1750127906717,0.98501301,653.57,653.06,1.501]
[1750127906718,1.000538,653.55,653.06,1.501]
[1750127906918,1.000538,653.54,653.06,1.501]
[1750127907121,1.000538,653.53,653.06,1.501]
[1750127907421,1.000538,653.52,653.06,1.501]
[1750127907620,1.000538,653.51,653.06,1.501]
[1750127907818,1.000538,653.5,653.06,1.501]
[1750127908018,1.000538,653.49,653.06,1.501]
[1750127908222,1.000538,653.48,653.06,1.501]
[1750127908423,1.000538,653.47,653.06,1.501]
[1750127908622,0.98501301,653.57,653.06,1.501]
[1750127908623,1.000538,653.46,653.07,1.673]
[1750127908824,1.000538,653.45,653.07,1.673]
[1750127909119,1.000538,653.44,653.07,1.673]
[1750127909325,1.000538,653.43,653.07,1.673]
[1750127909523,1.000538,653.42,653.07,1.673]
[1750127909723,1.000538,653.41,653.07,1.673]
[1750127909921,1.000538,653.4,653.07,1.673]
[1750127910121,1.000538,653.39,653.07,1.673]
[1750127910321,0.98538127,653.57,653.07,1.673]
[1750127910520,1.00077088,653.56,653.07,1.673]
[1750127910724,1.00077088,653.55,653.07,1.673]
[1750127910923,0.98538127,653.57,653.07,1.673]
[1750127910924,1.00077088,653.54,653.07,1.673]
[1750127911122,1.00077088,653.53,653.07,1.673]
[1750127911321,1.00077088,653.52,653.07,1.673]
[1750127911623,1.00077088,653.51,653.07,1.673]
[1750127911822,1.00077088,653.5,653.07,1.673]
[1750127912025,1.00077088,653.49,653.07,1.673]
[1750127912223,1.00077088,653.48,653.07,1.673]
[1750127912423,1.00077088,653.47,653.07,1.673]
[1750127912627,2.12511096,653.57,653.07,1.673]
[1750127912628,1.00077088,653.46,653.07,1.673]
[1750127912827,1.00077088,653.45,653.07,1.673]
[1750127913028,1.00077088,653.44,653.07,1.673]
[1750127913227,1.00077088,653.43,653.07,1.673]
[1750127913527,1.00077088,653.42,653.07,1.673]
[1750127913731,1.00077088,653.41,653.07,1.673]
[1750127914029,1.00077088,653.4,653.07,1.673]
[1750127914230,1.00077088,653.39,653.07,1.673]
[1750127914424,1.13974566,653.58,653.07,1.673]
[1750127914625,1.00075307,653.57,653.07,1.673]
[1750127914827,1.00075307,653.56,653.07,1.673]
[1750127915030,1.00075307,653.55,653.07,1.673]
[1750127915329,1.00075307,653.54,653.07,1.673]
[1750127915629,1.00075307,653.53,653.07,1.673]
[1750127915829,1.00075307,653.52,653.08,1.581]
[1750127916026,1.00075307,653.51,653.08,1.581]
[1750127916226,1.00075307,653.5,653.08,1.581]
[1750127916431,1.00075307,653.49,653.08,1.581]
[1750127916730,1.00075307,653.48,653.08,1.581]
[1750127916923,1.00075307,653.47,653.08,1.581]
[1750127917125,1.00075307,653.46,653.08,1.581]
[1750127917424,1.00075307,653.45,653.09,1.205]
[1750127917626,1.00075307,653.44,653.09,1.205]
[1750127917829,1.00075307,653.43,653.09,1.205]
[1750127918029,1.00075307,653.42,653.09,1.205]
[1750127918329,1.00075307,653.41,653.09,1.205]
[1750127918529,1.00075307,653.4,653.09,1.205]
[1750127918727,1.00075307,653.39,653.09,1.205]
[1750127919029,0.98532673,653.57,653.09,1.205]
[1750127919227,1.00078279,653.56,653.09,1.205]
[1750127919430,1.00078279,653.55,653.09,1.205]
[1750127919730,1.00078279,653.54,653.09,1.205]
[1750127919930,1.00078279,653.53,653.09,1.205]
[1750127920128,3.42729417,653.55,653.09,1.205]
[1750127920129,1.00078279,653.52,653.09,1.205]
[1750127920328,1.00078279,653.51,653.09,1.205]
[1750127920529,1.00078279,653.5,653.09,1.205]
[1750127920726,1.00078279,653.49,653.09,1.205]
[1750127920926,1.00078279,653.48,653.09,1.205]
[1750127921229,1.00078279,653.47,653.09,1.205]
[1750127921430,1.00078279,653.46,653.09,1.205]
[1750127921730,1.00078279,653.45,653.09,1.205]
[1750127921929,1.00078279,653.44,653.09,1.205]
[1750127922126,1.00078279,653.43,653.09,1.205]
[1750127922429,1.00078279,653.42,653.09,1.205]
[1750127922628,1.00078279,653.41,653.09,1.205]
[1750127922827,1.00078279,653.4,653.09,1.205]
[1750127923130,1.00078279,653.39,653.09,1.205]
[1750127923328,1.00078279,653.38,653.09,1.205]
[1750127923632,1.00078279,653.37,653.09,1.205]
[1750127923931,1.00078279,653.36,653.09,1.205]
[1750127924232,1.00078279,653.35,653.09,1.205]
[1750127924426,1.00078279,653.34,653.09,1.205]
[1750127924625,1.00078279,653.33,653.09,1.205]
[1750127924829,1.00078279,653.32,653.09,1.205]
[1750127925030,1.00078279,653.31,653.09,1.205]
[1750127925329,1.00078279,653.3,653.09,1.205]
[1750127925629,0.98586995,653.51,653.09,1.205]
[1750127925829,1.00023541,653.5,653.09,1.205]
[1750127926030,1.00023541,653.49,653.09,1.205]
[1750127926329,1.00023541,653.48,653.09,1.205]
[1750127926527,1.00023541,653.47,653.09,1.205]
[1750127926730,1.00023541,653.46,653.09,1.205]
[1750127926933,1.00023541,653.45,653.09,1.205]
[1750127927230,1.00023541,653.44,653.09,1.205]
[1750127927529,1.00023541,653.43,653.09,1.205]
[1750127927734,1.00023541,653.42,653.09,1.205]
[1750127928034,1.00023541,653.41,653.1,1.028]
[1750127928336,1.00023541,653.4,653.1,1.028]
[1750127928531,1.00023541,653.39,653.1,1.028]
[1750127928734,1.00023541,653.38,653.1,1.028]
[1750127928932,1.00023541,653.37,653.1,1.028]
[1750127929137,1.00023541,653.36,653.1,1.028]
[1750127929338,1.00023541,653.35,653.1,1.028]
[1750127929531,1.00023541,653.34,653.1,1.028]
[1750127929732,0.98588337,653.66,653.1,1.028]
[1750127929936,1.0002691,653.65,653.1,1.028]
[1750127930233,1.0002691,653.64,653.1,1.028]
[1750127930437,1.13974566,653.62,653.1,1.028]
[1750127930733,1.0002691,653.61,653.1,1.028]
[1750127930936,1.0002691,653.6,653.1,1.028]
[1750127931135,1.0002691,653.59,653.1,1.028]
[1750127931333,1.0002691,653.58,653.1,1.028]
[1750127931534,1.0002691,653.57,653.1,1.028]
[1750127931734,1.0002691,653.56,653.1,1.028]
[1750127931936,1.0002691,653.55,653.1,1.028]
[1750127932236,1.0002691,653.54,653.1,1.028]
[1750127932436,1.0002691,653.53,653.1,1.028]
[1750127932638,1.0002691,653.52,653.1,1.028]
[1750127932832,1.0002691,653.51,653.1,1.028]
[1750127933038,1.0002691,653.5,653.1,1.028]
[1750127933338,1.0002691,653.49,653.1,1.028]
[1750127933539,1.0002691,653.48,653.1,1.028]
[1750127933735,1.0002691,653.47,653.1,1.028]
[1750127933938,1.0002691,653.46,653.1,1.028]
[1750127934138,1.0002691,653.45,653.1,1.028]
[1750127934335,1.0002691,653.44,653.1,1.028]
[1750127934535,1.0002691,653.43,653.1,1.028]
[1750127934741,1.0002691,653.42,653.1,1.028]
[1750127935041,1.0002691,653.41,653.1,1.028]
[1750127935235,1.0002691,653.4,653.1,1.028]
[1750127935538,1.0002691,653.39,653.1,1.028]
[1750127935740,1.0002691,653.38,653.1,1.028]
[1750127935940,0.98615184,653.59,653.1,1.028]
[1750127936138,2.81023976,653.67,653.1,1.028]
[1750127936336,1.50908024,653.66,653.1,1.028]
[1750127936840,0.5229284,653.66,653.1,1.028]
[1750127937537,1.50908024,653.66,653.1,1.028]
[1750127938440,2.81021007,653.66,653.1,1.028]
[1750127938637,2.28728167,653.66,653.1,1.028]
[1750127938836,2.81029869,653.65,653.1,1.028]
[1750127939035,2.81029869,653.64,653.09,1.205]
[1750127939239,2.81029869,653.63,653.09,1.205]
[1750127939438,2.28735681,653.62,653.11,1.404]
[1750127939640,2.28735681,653.61,653.11,1.404]
[1750127939937,0.98616198,653.6,653.11,1.404]
[1750127940140,2.8102649,653.66,653.11,1.404]
[1750127940435,0.52293345,653.65,653.11,1.404]
[1750127941535,0.98616198,653.66,653.11,1.404]
[1750127941536,2.81028533,653.66,653.11,1.404]
[1750127941739,1.82412335,653.65,653.11,1.404]
[1750127941938,0.52293345,653.65,653.11,1.404]
[1750127942342,1.13974566,653.63,653.11,1.404]
[1750127942542,0.98616198,653.62,653.12,1.417]
[1750127942739,2.81028533,653.62,653.12,1.417]
[1750127942942,0.52293345,653.61,653.12,1.417]
[1750127943344,2.28735188,653.62,653.12,1.417]
[1750127943645,2.28735188,653.61,653.12,1.417]
[1750127943839,0.98616198,653.6,653.12,1.417]
[1750127944043,2.8122257,653.68,653.12,1.417]
[1750127944244,2.8122257,653.67,653.12,1.417]
[1750127944444,2.28892934,653.66,653.12,1.417]
[1750127944746,0.986831,653.65,653.12,1.417]
[1750127944946,2.81267867,653.71,653.12,1.417]
[1750127945140,1.5102509,653.7,653.12,1.417]
[1750127945342,0.986831,653.69,653.12,1.417]
[1750127945543,1.5102509,653.69,653.12,1.417]
[1750127945744,0.986831,653.68,653.12,1.417]
[1750127946142,1.5102509,653.68,653.12,1.417]
[1750127946344,0.986831,653.67,653.12,1.417]
[1750127946543,0.986831,653.66,653.12,1.417]
[1750127946742,0.986831,653.67,653.12,1.417]
[1750127947045,0.986831,653.66,653.12,1.417]
[1750127947745,2.28925877,653.68,653.12,1.417]
[1750127947945,2.80546961,653.67,653.12,1.417]
[1750127948148,2.28925877,653.67,653.12,1.417]
[1750127948749,2.28925877,653.66,653.12,1.417]
[1750127948947,2.28925877,653.65,653.12,1.417]
[1750127949152,2.28925877,653.64,653.12,1.417]
[1750127949349,0.98685285,653.63,653.12,1.417]
[1750127949649,2.80515055,653.68,653.12,1.417]
[1750127949846,1.50301273,653.67,653.12,1.417]
[1750127950451,2.80515055,653.67,653.12,1.417]
[1750127950649,2.28899067,653.66,653.12,1.417]
[1750127950849,2.28899067,653.65,653.12,1.417]
[1750127951054,0.98685285,653.64,653.12,1.417]
[1750127951252,2.79408806,653.68,653.12,1.417]
[1750127951450,1.50294797,653.67,653.12,1.417]
[1750127952051,1.50352215,653.67,653.12,1.417]
[1750127952555,0.98746657,653.66,653.12,2.94420425]
[1750127952756,0.98746657,653.66,653.13,1.52720425]
[1750127952957,1.50352215,653.66,653.13,1.52720425]
[1750127953453,0.98746657,653.66,653.14,1.52720425]
[1750127953856,1.50352759,653.66,653.14,1.52720425]
[1750127954152,0.51606102,653.66,653.14,1.52720425]
[1750127954358,1.50352759,653.66,653.14,1.52720425]
[1750127954852,1.50345323,653.66,653.14,1.52720425]
[1750127955953,0.51603192,653.66,653.14,1.52720425]
[1750127956253,1.50345323,653.66,653.14,1.52720425]
[1750127956458,1.50345323,653.66,653.13,1.52720425]
[1750127956958,0.51603192,653.66,653.13,1.52720425]
[1750127957656,0.51600738,653.66,653.13,1.52720425]
[1750127957858,0.51600738,653.66,653.14,1.566]
[1750127958358,0.51600738,653.66,653.14,3.09320425]
[1750127958554,2.27829465,653.67,653.14,1.566]
[1750127959157,2.27829465,653.67,653.15,1.085]
[1750127959363,0.51599974,653.66,653.15,1.085]
[1750127960258,0.51599415,653.66,653.15,1.085]
[1750127960463,1.5033432,653.67,653.15,1.085]
[1750127961160,2.79423792,653.67,653.15,1.085]
[1750127961362,0.51599554,653.66,653.15,1.085]
[1750127962266,0.515992,653.66,653.15,1.085]
[1750127963066,2.27824238,653.67,653.15,1.085]
[1750127963267,2.27816784,653.66,653.15,1.085]
[1750127963463,2.27816784,653.65,653.15,1.085]
[1750127963668,0.98731939,653.64,653.15,1.085]
[1750127963968,2.79414473,653.67,653.15,1.085]
[1750127964166,2.27816799,653.67,653.15,1.085]
[1750127965866,1.2908486,653.67,653.15,1.085]
[1750127966066,2.64298829,653.67,653.15,1.085]
[1750127966271,2.27813159,653.66,653.15,1.085]
[1750127966865,0.98728299,653.65,653.15,1.085]
[1750127967068,2.79405505,653.67,653.15,1.085]
[1750127967267,2.27809213,653.67,653.15,1.085]
[1750127968668,0.98728299,653.67,653.15,1.085]
[1750127968874,2.7940087,653.67,653.15,1.085]
[1750127969170,1.29077741,653.66,653.15,1.085]
[1750127969373,2.2780604,653.67,653.15,1.085]
[1750127969874,3.41780606,653.67,653.15,1.085]
[1750127970171,2.2780604,653.66,653.15,1.085]
[1750127970777,0.98728299,653.65,653.15,1.085]
[1750127970972,2.79393863,653.67,653.15,1.085]
[1750127971174,2.27800901,653.67,653.15,1.085]
[1750127971472,1.29068463,653.66,653.15,1.085]
[1750127971672,2.27796762,653.66,653.15,1.085]
[1750127971974,1.13974566,653.64,653.15,1.085]
[1750127972174,1.13974566,653.61,653.15,1.085]
[1750127972376,1.13974566,653.59,653.15,1.085]
[1750127972571,2.64291782,653.59,653.15,1.085]
[1750127972773,3.93360245,653.58,653.15,1.085]
[1750127972974,2.79385679,653.57,653.15,1.085]
[1750127973177,2.27796762,653.57,653.15,1.085]
[1750127973578,0.98728299,653.56,653.15,1.085]
[1750127973774,2.79352217,653.58,653.15,1.085]
[1750127973973,2.27769758,653.58,653.15,1.085]
[1750127974778,0.98728299,653.58,653.15,1.085]
[1750127975279,3.93309271,653.63,653.15,1.085]
[1750127975479,2.79334705,653.62,653.15,1.085]
[1750127975680,0.51577745,653.61,653.15,1.085]
[1750127976877,2.79240893,653.62,653.15,1.085]
[1750127977083,0.51567707,653.61,653.15,1.085]
[1750127978376,2.79240893,653.61,653.15,1.085]
[1750127978578,0.51567707,653.6,653.15,1.085]
[1750127979379,2.79226892,653.6,653.15,1.085]
[1750127979580,1.50220561,653.59,653.15,1.085]
[1750127979780,0.51560502,653.59,653.15,1.085]
[1750127980278,1.50220561,653.59,653.15,1.085]
[1750127980477,0.51560502,653.6,653.15,1.085]
[1750127981181,2.27659327,653.61,653.15,1.085]
[1750127981382,0.51553083,653.6,653.15,1.085]
[1750127981981,2.7921241,653.6,653.15,1.085]
[1750127982282,1.50183978,653.59,653.15,1.085]
[1750127982480,0.51553083,653.59,653.15,1.085]
[1750127983783,2.27630163,653.6,653.15,1.085]
[1750127983984,0.98630895,653.6,653.15,1.085]
[1750127984180,1.13974566,653.61,653.15,1.085]
[1750127984480,1.13974566,653.62,653.15,1.085]
[1750127984679,1.13974566,653.57,653.15,1.085]
[1750127985081,1.13974566,653.56,653.15,1.085]
[1750127986787,1.13974566,653.57,653.15,1.085]
[1750127987189,1.13974566,653.65,653.15,1.085]
[1750127987390,1.13974566,653.71,653.15,1.085]
[1750127988086,1.13974566,653.72,653.15,1.085]
[1750127995804,1.13974566,653.71,653.15,1.085]
[1750127995995,1.13974566,653.69,653.15,1.085]
[1750127996195,2.2847151,654.09,653.15,1.085]
[1750127996196,1.13974566,653.64,653.15,1.085]
[1750127996400,1.13974566,653.61,653.15,1.085]
[1750127997001,1.13974566,653.58,653.15,1.085]
[1750127997202,1.13974566,653.57,653.15,1.085]
[1750128001102,3.95000564,653.57,653.15,1.085]
[1750128001299,2.81015194,653.56,653.15,1.085]
[1750128001500,2.28274621,653.56,653.15,1.085]
[1750128001899,0.52740649,653.55,653.15,1.085]
[1750128002399,0.52738021,653.55,653.15,1.085]
[1750128002600,2.28274621,653.55,653.15,1.085]
[1750128002797,0.98733392,653.54,653.15,1.085]
[1750128003000,2.81008411,653.56,653.15,1.085]
[1750128003200,0.52738615,653.55,653.15,1.085]
[1750128003502,2.28269796,653.56,653.15,1.085]
[1750128003703,0.98733392,653.55,653.15,1.085]
[1750128003900,2.81010955,653.58,653.15,1.085]
[1750128004204,0.52739614,653.57,653.15,1.085]
[1750128004504,2.28271341,653.58,653.15,1.085]
[1750128006106,0.52742321,653.57,653.15,1.085]
[1750128006407,0.52742321,653.57,653.11,0.953]
[1750128006408,2.81013662,653.57,653.11,0.953]
[1750128006607,0.98736316,653.56,653.11,0.953]
[1750128006801,2.28275981,653.57,653.11,0.953]
[1750128009302,1.29539665,653.57,653.12,0.956]
[1750128009502,1.51508526,653.57,653.12,0.956]
[1750128010006,0.52752575,653.57,653.12,0.956]
[1750128010202,1.13974566,653.58,653.12,0.956]
[1750128011403,3.95029497,653.58,653.12,0.956]
[1750128011601,2.81054931,653.57,653.12,0.956]
[1750128011902,0.52759315,653.56,653.12,0.956]
[1750128013706,2.8113366,653.56,653.12,0.956]
[1750128013909,2.28374345,653.56,653.12,0.956]
[1750128014809,2.28394538,653.55,653.12,0.956]
[1750128015005,0.98784842,653.54,653.12,0.956]
[1750128015309,2.8116265,653.56,653.12,0.956]
[1750128015508,2.28394613,653.56,653.12,0.956]
[1750128017107,0.98794228,653.55,653.12,0.956]
[1750128017310,2.28403999,653.56,653.12,0.956]
[1750128017508,1.13974566,653.57,653.12,0.956]
[1750128019311,1.13974566,653.56,653.12,0.956]
[1750128020108,3.95164635,653.56,653.12,0.956]
[1750128020316,2.81253349,653.55,653.12,0.956]
[1750128020509,2.28468292,653.55,653.12,0.956]
[1750128021211,0.98818278,653.54,653.12,0.956]
[1750128021411,2.81258094,653.56,653.12,0.956]
[1750128021611,0.52785872,653.55,653.12,0.956]
[1750128021811,2.81258094,653.55,653.12,0.956]
[1750128022109,2.28472222,653.55,653.12,0.956]
[1750128023111,0.98832148,653.54,653.12,0.956]
[1750128023316,2.28486092,653.55,653.12,0.956]
[1750128023816,0.52801903,653.54,653.12,0.956]
[1750128024612,2.81287995,653.54,653.12,0.956]
[1750128024911,0.98832148,653.53,653.12,0.956]
[1750128025115,2.81326975,653.76,653.12,0.956]
[1750128025316,2.81326975,653.75,653.12,0.956]
[1750128025517,2.81326975,653.74,653.12,0.956]
[1750128025712,2.81326975,653.73,653.12,0.956]
[1750128026034,1.1395325,653.56,653.12,0.956]
[1750128026214,0.988514,653.55,653.12,0.956]
[1750128026619,3.95301232,653.55,653.12,0.956]
[1750128026819,2.81347982,653.54,653.12,0.956]
[1750128027116,2.2854443,653.54,653.12,0.956]
[1750128027817,0.52771417,653.53,653.12,0.956]
[1750128028021,1.51622817,653.54,653.12,0.956]
[1750128028218,2.8138866,653.54,653.12,0.956]
[1750128028417,1.1395325,653.55,653.12,0.956]
[1750128028418,2.8138866,653.53,653.12,0.956]
[1750128028718,2.2867012,653.52,653.12,0.956]
[1750128028922,0.98904277,653.51,653.12,0.956]
[1750128029123,0.98904277,653.53,653.12,0.956]
[1750128029320,0.98904277,653.55,653.12,0.956]
[1750128029525,2.8145813,653.6,653.12,0.956]
[1750128029726,2.8145813,653.59,653.12,0.956]
[1750128029920,2.28682428,653.59,653.12,0.956]
[1750128030124,1.51692751,653.58,653.12,0.956]
[1750128031322,0.52788474,653.58,653.12,0.956]
[1750128031526,0.98932402,653.58,653.12,0.956]
[1750128031823,2.81527909,653.58,653.12,0.956]
[1750128032022,1.51720117,653.57,653.12,0.956]
[1750128032226,0.98932402,653.56,653.12,0.956]
[1750128032426,2.81527909,653.57,653.12,0.956]
[1750128032626,2.28740194,653.57,653.12,0.956]
[1750128033226,2.28740194,653.56,653.12,0.956]
[1750128033426,0.98932402,653.55,653.12,0.956]
[1750128033625,2.8157331,653.58,653.12,0.956]
[1750128033831,1.5173325,653.57,653.12,0.956]
[1750128034124,2.81572583,653.57,653.12,0.956]
[1750128034330,0.98932402,653.56,653.12,0.956]
[1750128034526,2.81572078,653.58,653.12,0.956]
[1750128034830,1.51732877,653.57,653.12,0.956]
[1750128035426,0.98932402,653.57,653.12,0.956]
[1750128036430,1.51730019,653.57,653.13,1.721]
[1750128036925,1.51745951,653.57,653.14,1.154]
[1750128037128,2.28778834,653.58,653.14,1.154]
[1750128037327,2.28778834,653.57,653.14,1.154]
[1750128037529,0.98949242,653.56,653.14,1.154]
[1750128037727,2.81577843,653.59,653.14,1.154]
[1750128037928,1.51746528,653.58,653.14,1.154]
[1750128039230,0.98949242,653.57,653.14,1.154]
[1750128039432,0.98949242,653.56,653.14,1.154]
[1750128039933,1.51746833,653.56,653.14,1.154]
[1750128040533,0.98949242,653.55,653.15,1.344]
[1750128040829,1.51746833,653.56,653.15,1.344]
[1750128041234,0.98949242,653.56,653.15,1.344]
[1750128042133,1.5174634,653.56,653.15,1.344]
[1750128042334,2.81579767,653.56,653.15,1.344]
[1750128042530,0.98950647,653.55,653.15,1.344]
[1750128042734,2.81577662,653.57,653.15,1.344]
[1750128042934,1.5174749,653.56,653.15,1.344]
[1750128043431,0.98950647,653.55,653.15,1.344]
[1750128044436,0.98950647,653.54,653.15,1.344]
[1750128044636,0.98950647,653.55,653.15,1.344]
[1750128044833,0.98950647,653.54,653.15,1.344]
[1750128045832,1.51727033,653.55,653.15,1.344]
[1750128046037,0.98950647,653.54,653.15,1.344]
[1750128046241,0.98950647,653.53,653.15,1.344]
[1750128046437,0.98950647,653.52,653.15,1.344]
[1750128046736,0.98950647,653.51,653.15,1.344]
[1750128046935,0.98950647,653.52,653.15,1.344]
[1750128047139,0.98950647,653.51,653.15,1.344]
[1750128047339,0.98950647,653.52,653.15,1.344]
[1750128047537,0.98950647,653.51,653.15,1.344]
[1750128047740,0.98950647,653.52,653.15,1.344]
[1750128047934,0.98950647,653.51,653.15,1.344]
[1750128048139,2.81513012,653.53,653.15,1.344]
[1750128048338,2.28734878,653.52,653.15,1.344]
[1750128048537,0.98950647,653.51,653.15,1.344]
[1750128048841,1.13993764,653.55,653.15,1.344]